fUST/lending_fUST_20250531
["ID","MTS","AMOUNT","RATE_DAILY","PERIOD"]
[363373243,1748701848640,-430.0,0.00018082,2]
[363373244,1748701848649,-430.0,0.00018082,2]
[363373245,1748701848658,-444.14,0.00018082,2]
[363373246,1748701848667,-430.0,0.00018082,2]
[363373247,1748701848676,-2229.64,0.00018082,2]
[363373248,1748701848686,-514.8189457,0.00018082,2]
[363373249,1748701848696,-1040.19,0.00018082,2]
[363373250,1748701848706,-430.0,0.00018082,2]
[363373251,1748701848716,-349.58,0.00018082,2]
[363373252,1748701848725,-437.01542089,0.00018082,2]
[363373253,1748701848734,-430.0,0.00018082,2]
[363373254,1748701848743,-430.0,0.00018082,2]
[363373255,1748701848752,-430.0,0.00018082,2]
[363373256,1748701848762,-443.18,0.00018082,2]
[363373257,1748701848771,-1115.27,0.00018082,2]
[363373258,1748701848780,-430.0,0.00018082,2]
[363373259,1748701848790,-430.0,0.00018082,2]
[363373260,1748701848799,-486.49,0.00018082,2]
[363373261,1748701848808,-430.0,0.00018082,2]
[363373262,1748701848818,-430.0,0.00018082,2]
[363373263,1748701848828,-1500.0,0.00018132,2]
[363373264,1748701848838,-1196.12901374,0.00018141,2]
[363373265,1748701848847,-430.0,0.00018356,2]
[363373266,1748701848858,-430.0,0.00018356,2]
[363373267,1748701848867,-430.0,0.00018356,2]
[363373268,1748701848877,-430.0,0.00018356,2]
[363373269,1748701848887,-430.0,0.00018356,2]
[363373270,1748701848896,-155.43779901,0.00018356,2]
[363373271,1748701848906,-430.0,0.00018356,2]
[363373272,1748701848916,-430.0,0.00018356,2]
[363373273,1748701848926,-430.0,0.00018356,2]
[363373274,1748701848936,-430.0,0.00018356,2]
[363373275,1748701848946,-430.0,0.00018356,2]
[363373276,1748701848955,-697.77,0.00018356,2]
[363373277,1748701848967,-430.0,0.00018356,2]
[363373278,1748701848977,-430.0,0.00018356,2]
[363373279,1748701848987,-430.0,0.00018356,2]
[363373280,1748701848996,-430.0,0.00018356,2]
[363373281,1748701849006,-1363.21,0.00018356,2]
[363373282,1748701849016,-430.0,0.00018356,2]
[363373283,1748701849025,-658.26,0.00018356,2]
[363373284,1748701849035,-430.0,0.00018356,2]
[363373285,1748701849045,-430.0,0.00018356,2]
[363373286,1748701849054,-823.82,0.00018356,2]
[363373287,1748701849063,-430.0,0.00018356,2]
[363373288,1748701849073,-430.0,0.00018356,2]
[363373289,1748701849082,-430.0,0.00018356,2]
[363373290,1748701849091,-430.0,0.00018356,2]
[363373291,1748701849101,-430.0,0.00018356,2]
[363373292,1748701849110,-1045.12,0.00018356,2]
[363373293,1748701849120,-1042.02,0.00018356,2]
[363373294,1748701849129,-1392.42,0.00018356,2]
[363373295,1748701849139,-430.0,0.00018356,2]
[363373296,1748701849148,-1371.02,0.00018356,2]
[363373297,1748701849158,-384.06865273,0.00018356,2]
[363373298,1748701849167,-430.0,0.00018356,2]
[363373299,1748701849177,-430.0,0.00018356,2]
[363373300,1748701849186,-2919.2,0.00018356,2]
[363373301,1748701849196,-430.0,0.00018356,2]
[363373302,1748701849206,-519.87,0.00018356,2]
[363373303,1748701849216,-430.0,0.00018356,2]
[363373304,1748701849226,-430.0,0.00018356,2]
[363373305,1748701849235,-675.79,0.00018356,2]
[363373306,1748701849245,-482.88,0.00018356,2]
[363373307,1748701849255,-430.0,0.00018356,2]
[363373308,1748701849264,-3090.3,0.00018356,2]
[363373309,1748701849273,-1138.61,0.00018356,2]
[363373310,1748701849283,-430.0,0.00018356,2]
[363373311,1748701849292,-969.3,0.00018356,2]
[363373312,1748701849300,-1948.36,0.00018356,2]
[363373313,1748701849309,-334.28957184,0.00018356,2]
[363373314,1748701849319,-270.0,0.00018356,2]
[363373315,1748701849329,-2503.72,0.00018356,2]
[363373316,1748701849338,-430.0,0.00018356,2]
[363373317,1748701849348,-205.93703994,0.00018356,2]
[363373318,1748701849358,-430.0,0.00018356,2]
[363373319,1748701849367,-430.0,0.00018356,2]
[363373320,1748701849377,-430.0,0.00018356,2]
[363373321,1748701849386,-162.52361612,0.00018356,2]
[363373322,1748701849396,-430.0,0.00018356,2]
[363373323,1748701849405,-499.05,0.00018356,2]
[363373324,1748701849415,-809.48,0.00018356,2]
[363373325,1748701849424,-881.69,0.00018356,2]
[363373326,1748701849434,-430.0,0.00018356,2]
[363373327,1748701849443,-206.96214421,0.00018356,2]
[363373328,1748701849453,-444.14,0.00018356,2]
[363373329,1748701849463,-430.0,0.00018356,2]
[363373330,1748701849473,-2229.64,0.00018356,2]
[363373331,1748701849483,-1040.19,0.00018356,2]
[363373332,1748701849492,-430.0,0.00018356,2]
[363373333,1748701849502,-430.0,0.00018356,2]
[363373334,1748701849512,-448.44,0.00018356,2]
[363373335,1748701849523,-430.0,0.00018356,2]
[363373336,1748701849535,-443.18,0.00018356,2]
[363373337,1748701849544,-1115.27,0.00018356,2]
[363373338,1748701849554,-430.0,0.00018356,2]
[363373339,1748701849689,-486.49,0.00018356,2]
[363373340,1748701849699,-430.0,0.00018356,2]
[363373341,1748701849709,-430.0,0.00018356,2]
[363373342,1748701849718,-1196.12901374,0.00018383,2]
[363373343,1748701849728,-115315.69710221,0.00018399,2]
[363373344,1748701849737,-587.0,0.0001843,2]
[363373345,1748701849746,-309.13313198,0.0001853,2]
[363373346,1748701849756,-1196.12901374,0.00018624,2]
[363373347,1748701849765,-430.0,0.0001863,2]
[363373348,1748701849774,-511.53,0.0001863,2]
[363373349,1748701849783,-430.0,0.0001863,2]
[363373350,1748701849792,-430.0,0.0001863,2]
[363373351,1748701849801,-430.0,0.0001863,2]
[363373352,1748701849811,-430.0,0.0001863,2]
[363373353,1748701849820,-219.25850839,0.0001863,2]
[363373354,1748701849829,-430.0,0.0001863,2]
[363373355,1748701849838,-430.0,0.0001863,2]
[363373356,1748701849847,-697.77,0.0001863,2]
[363373357,1748701849856,-430.0,0.0001863,2]
[363373358,1748701849866,-430.0,0.0001863,2]
[363373359,1748701849875,-430.0,0.0001863,2]
[363373360,1748701849885,-1363.21,0.0001863,2]
[363373361,1748701849894,-430.0,0.0001863,2]
[363373362,1748701849903,-658.26,0.0001863,2]
[363373363,1748701849913,-430.0,0.0001863,2]
[363373364,1748701849922,-430.0,0.0001863,2]
[363373365,1748701849932,-823.82,0.0001863,2]
[363373366,1748701849941,-430.0,0.0001863,2]
[363373367,1748701849951,-430.0,0.0001863,2]
[363373368,1748701849962,-430.0,0.0001863,2]
[363373369,1748701849971,-430.0,0.0001863,2]
[363373370,1748701849981,-1045.12,0.0001863,2]
[363373371,1748701849990,-1042.02,0.0001863,2]
[363373372,1748701849999,-1392.42,0.0001863,2]
[363373373,1748701850009,-430.0,0.0001863,2]
[363373374,1748701850018,-1371.02,0.0001863,2]
[363373375,1748701850027,-430.0,0.0001863,2]
[363373376,1748701850037,-430.0,0.0001863,2]
[363373377,1748701850046,-2919.2,0.0001863,2]
[363373378,1748701850056,-430.0,0.0001863,2]
[363373379,1748701850065,-519.87,0.0001863,2]
[363373380,1748701850075,-430.0,0.0001863,2]
[363373381,1748701850084,-430.0,0.0001863,2]
[363373382,1748701850094,-675.79,0.0001863,2]
[363373383,1748701850103,-482.88,0.0001863,2]
[363373384,1748701850113,-430.0,0.0001863,2]
[363373385,1748701850123,-3090.3,0.0001863,2]
[363373386,1748701850132,-1138.61,0.0001863,2]
[363373387,1748701850142,-430.0,0.0001863,2]
[363373388,1748701850151,-969.3,0.0001863,2]
[363373389,1748701850160,-1948.36,0.0001863,2]
[363373390,1748701850170,-2503.72,0.0001863,2]
[363373391,1748701850179,-333.04005658,0.0001863,2]
[363373392,1748701850188,-430.0,0.0001863,2]
[363373393,1748701850199,-430.0,0.0001863,2]
[363373394,1748701850208,-430.0,0.0001863,2]
[363373395,1748701850220,-499.05,0.0001863,2]
[363373396,1748701850230,-809.48,0.0001863,2]
[363373397,1748701850239,-881.69,0.0001863,2]
[363373398,1748701850248,-430.0,0.0001863,2]
[363373399,1748701850258,-444.14,0.0001863,2]
[363373400,1748701850267,-430.0,0.0001863,2]
[363373401,1748701850277,-2229.64,0.0001863,2]
[363373402,1748701850286,-1040.19,0.0001863,2]
[363373403,1748701850295,-430.0,0.0001863,2]
[363373404,1748701850305,-430.0,0.0001863,2]
[363373405,1748701850314,-430.0,0.0001863,2]
[363373406,1748701850324,-443.18,0.0001863,2]
[363373407,1748701850333,-1115.27,0.0001863,2]
[363373408,1748701850344,-430.0,0.0001863,2]
[363373409,1748701850354,-486.49,0.0001863,2]
[363373410,1748701850363,-430.0,0.0001863,2]
[363373411,1748701850372,-430.0,0.0001863,2]
[363373412,1748701850382,-1196.12901374,0.00018866,2]
[363373413,1748701850392,-1820.67011388,0.000189,2]
[363373414,1748701850403,-430.0,0.00018904,2]
[363373415,1748701850413,-430.0,0.00018904,2]
[363373416,1748701850423,-374.318764,0.00018904,2]
[363373417,1748701850432,-367.63231252,0.00018904,2]
[363373418,1748701850442,-430.0,0.00018904,2]
[363373419,1748701850452,-430.0,0.00018904,2]
[363373420,1748701850463,-430.0,0.00018904,2]
[363373421,1748701850473,-697.77,0.00018904,2]
[363373422,1748701850482,-430.0,0.00018904,2]
[363373423,1748701850491,-430.0,0.00018904,2]
[363373424,1748701850500,-430.0,0.00018904,2]
[363373425,1748701850510,-1363.21,0.00018904,2]
[363373426,1748701850521,-430.0,0.00018904,2]
[363373427,1748701850534,-658.26,0.00018904,2]
[363373428,1748701850543,-430.0,0.00018904,2]
[363373429,1748701850554,-430.0,0.00018904,2]
[363373430,1748701850563,-823.82,0.00018904,2]
[363373431,1748701850574,-430.0,0.00018904,2]
[363373432,1748701850583,-430.0,0.00018904,2]
[363373433,1748701850592,-430.0,0.00018904,2]
[363373434,1748701850602,-1045.12,0.00018904,2]
[363373435,1748701850612,-1042.02,0.00018904,2]
[363373436,1748701850623,-1392.42,0.00018904,2]
[363373437,1748701850634,-1371.02,0.00018904,2]
[363373438,1748701850643,-430.0,0.00018904,2]
[363373439,1748701850653,-430.0,0.00018904,2]
[363373440,1748701850662,-430.0,0.00018904,2]
[363373441,1748701850671,-2919.2,0.00018904,2]
[363373442,1748701850680,-430.0,0.00018904,2]
[363373443,1748701850691,-519.87,0.00018904,2]
[363373444,1748701850700,-430.0,0.00018904,2]
[363373445,1748701850712,-311.29,0.00018904,2]
[363373446,1748701850721,-675.79,0.00018904,2]
[363373447,1748701850730,-482.88,0.00018904,2]
[363373448,1748701850740,-430.0,0.00018904,2]
[363373449,1748701850749,-3090.3,0.00018904,2]
[363373450,1748701850758,-1138.61,0.00018904,2]
[363373451,1748701850768,-430.0,0.00018904,2]
[363373452,1748701850777,-969.3,0.00018904,2]
[363373453,1748701850786,-1948.36,0.00018904,2]
[363373454,1748701850797,-2503.72,0.00018904,2]
[363373455,1748701850806,-430.0,0.00018904,2]
[363373456,1748701850816,-430.0,0.00018904,2]
[363373457,1748701850826,-430.0,0.00018904,2]
[363373458,1748701850836,-499.05,0.00018904,2]
[363373459,1748701850845,-809.48,0.00018904,2]
[363373460,1748701850855,-881.69,0.00018904,2]
[363373461,1748701850864,-430.0,0.00018904,2]
[363373462,1748701850874,-444.14,0.00018904,2]
[363373463,1748701850883,-430.0,0.00018904,2]
[363373464,1748701850892,-2229.64,0.00018904,2]
[363373465,1748701850902,-1040.19,0.00018904,2]
[363373466,1748701850912,-430.0,0.00018904,2]
[363373467,1748701850921,-430.0,0.00018904,2]
[363373468,1748701850931,-517.16,0.00018904,2]
[363373469,1748701850940,-443.18,0.00018904,2]
[363373470,1748701850950,-1115.27,0.00018904,2]
[363373471,1748701850959,-424.48293153,0.00018904,2]
[363373472,1748701850969,-486.49,0.00018904,2]
[363373473,1748701850978,-363.25,0.00018904,2]
[363373474,1748701850988,-430.0,0.00018904,2]
[363373475,1748701850997,-1196.12901374,0.00019107,2]
[363373476,1748701851006,-430.0,0.00019178,2]
[363373477,1748701851016,-430.0,0.00019178,2]
[363373478,1748701851025,-430.0,0.00019178,2]
[363373479,1748701851034,-430.0,0.00019178,2]
[363373480,1748701851043,-430.0,0.00019178,2]
[363373481,1748701851053,-697.77,0.00019178,2]
[363373482,1748701851062,-430.0,0.00019178,2]
[363373483,1748701851071,-430.0,0.00019178,2]
[363373484,1748701851080,-430.0,0.00019178,2]
[363373485,1748701851090,-1363.21,0.00019178,2]
[363373486,1748701851099,-430.0,0.00019178,2]
[363373487,1748701851108,-658.26,0.00019178,2]
[363373488,1748701851118,-430.0,0.00019178,2]
[363373489,1748701851127,-430.0,0.00019178,2]
[363373490,1748701851136,-823.82,0.00019178,2]
[363373491,1748701851145,-430.0,0.00019178,2]
[363373492,1748701851154,-430.0,0.00019178,2]
[363373493,1748701851164,-430.0,0.00019178,2]
[363373494,1748701851173,-1045.12,0.00019178,2]
[363373495,1748701851182,-1042.02,0.00019178,2]
[363373496,1748701851191,-1392.42,0.00019178,2]
[363373497,1748701851201,-1371.02,0.00019178,2]
[363373498,1748701851210,-430.0,0.00019178,2]
[363373499,1748701851220,-430.0,0.00019178,2]
[363373500,1748701851229,-430.0,0.00019178,2]
[363373501,1748701851239,-2919.2,0.00019178,2]
[363373502,1748701851248,-519.87,0.00019178,2]
[363373503,1748701851257,-262.12753898,0.00019178,2]
[363373504,1748701851266,-430.0,0.00019178,2]
[363373505,1748701851276,-675.79,0.00019178,2]
[363373506,1748701851285,-482.88,0.00019178,2]
[363373507,1748701851295,-430.0,0.00019178,2]
[363373508,1748701851304,-3090.3,0.00019178,2]
[363373509,1748701851313,-430.0,0.00019178,2]
[363373510,1748701851323,-430.0,0.00019178,2]
[363373511,1748701851332,-1138.61,0.00019178,2]
[363373512,1748701851341,-439.10259243,0.00019178,2]
[363373513,1748701851351,-430.0,0.00019178,2]
[363373514,1748701851360,-969.3,0.00019178,2]
[363373515,1748701851370,-1948.36,0.00019178,2]
[363373516,1748701851379,-2503.72,0.00019178,2]
[363373517,1748701851389,-430.0,0.00019178,2]
[363373518,1748701851398,-430.0,0.00019178,2]
[363373519,1748701851408,-430.0,0.00019178,2]
[363373520,1748701851417,-499.05,0.00019178,2]
[363373521,1748701851426,-809.48,0.00019178,2]
[363373522,1748701851435,-881.69,0.00019178,2]
[363373523,1748701851445,-512.28,0.00019178,2]
[363373524,1748701851454,-444.14,0.00019178,2]
[363373525,1748701851465,-430.0,0.00019178,2]
[363373526,1748701851474,-2229.64,0.00019178,2]
[363373527,1748701851483,-1040.19,0.00019178,2]
[363373528,1748701851492,-430.0,0.00019178,2]
[363373529,1748701851501,-430.0,0.00019178,2]
[363373530,1748701851510,-443.18,0.00019178,2]
[363373531,1748701851519,-1115.27,0.00019178,2]
[363373532,1748701851531,-486.49,0.00019178,2]
[363373533,1748701851540,-430.0,0.00019178,2]
[363373534,1748701851549,-1196.12901374,0.00019348,2]
[363373535,1748701851558,-160.0,0.00019451,2]
[363373536,1748701851568,-430.0,0.00019452,2]
[363373537,1748701851578,-430.0,0.00019452,2]
[363373538,1748701851587,-470.86628721,0.00019452,2]
[363373539,1748701851596,-430.0,0.00019452,2]
[363373540,1748701851606,-697.77,0.00019452,2]
[363373541,1748701851615,-430.0,0.00019452,2]
[363373542,1748701851625,-430.0,0.00019452,2]
[363373543,1748701851634,-1363.21,0.00019452,2]
[363373544,1748701851643,-430.0,0.00019452,2]
[363373545,1748701851652,-658.26,0.00019452,2]
[363373546,1748701851661,-430.0,0.00019452,2]
[363373547,1748701851670,-430.0,0.00019452,2]
[363373548,1748701851679,-823.82,0.00019452,2]
[363373549,1748701851689,-430.0,0.00019452,2]
[363373550,1748701851698,-372.62763877,0.00019452,2]
[363373551,1748701851707,-430.0,0.00019452,2]
[363373552,1748701851717,-1045.12,0.00019452,2]
[363373553,1748701851726,-1042.02,0.00019452,2]
[363373554,1748701851735,-1392.42,0.00019452,2]
[363373555,1748701851744,-1371.02,0.00019452,2]
[363373556,1748701851753,-430.0,0.00019452,2]
[363373557,1748701851762,-430.0,0.00019452,2]
[363373558,1748701851772,-430.0,0.00019452,2]
[363373559,1748701851781,-2919.2,0.00019452,2]
[363373560,1748701851790,-519.87,0.00019452,2]
[363373561,1748701851799,-430.0,0.00019452,2]
[363373562,1748701851808,-675.79,0.00019452,2]
[363373563,1748701851818,-482.88,0.00019452,2]
[363373564,1748701851827,-430.0,0.00019452,2]
[363373565,1748701851836,-3090.3,0.00019452,2]
[363373566,1748701851845,-1138.61,0.00019452,2]
[363373567,1748701851854,-430.0,0.00019452,2]
[363373568,1748701851863,-969.3,0.00019452,2]
[363373569,1748701851873,-1948.36,0.00019452,2]
[363373570,1748701851882,-2503.72,0.00019452,2]
[363373571,1748701851891,-456.51,0.00019452,2]
[363373572,1748701851900,-430.0,0.00019452,2]
[363373573,1748701851910,-430.0,0.00019452,2]
[363373574,1748701851919,-499.05,0.00019452,2]
[363373575,1748701851929,-809.48,0.00019452,2]
[363373576,1748701851938,-881.69,0.00019452,2]
[363373577,1748701851947,-444.14,0.00019452,2]
[363373578,1748701851957,-2229.64,0.00019452,2]
[363373579,1748701851967,-1040.19,0.00019452,2]
[363373580,1748701851977,-430.0,0.00019452,2]
[363373581,1748701851987,-430.0,0.00019452,2]
[363373582,1748701851996,-443.18,0.00019452,2]
[363373583,1748701852005,-1115.27,0.00019452,2]
[363373584,1748701852015,-486.49,0.00019452,2]
[363373585,1748701852024,-502.60008131,0.00019473,2]
[363373586,1748701852034,-500.0,0.00019473,2]
[363373587,1748701852043,-539.3844766,0.00019473,2]
[363373588,1748701852052,-500.0,0.00019473,2]
[363373589,1748701852062,-500.0,0.00019473,2]
[363373590,1748701852071,-500.0,0.00019473,2]
[363373591,1748701852080,-600.0,0.00019473,2]
[363373592,1748701852089,-500.0,0.00019473,2]
[363373593,1748701852098,-332664.10286221,0.000195,2]
[363373594,1748701852107,-1196.12901374,0.0001959,2]
[363373595,1748701852116,-587.0,0.00019626,2]
[363373596,1748701852125,-5000.0,0.00019697,2]
[363373597,1748701852135,-572.2963003,0.00019699,2]
[363373598,1748701852144,-153.0,0.00019699,2]
[363373599,1748701852153,-153.0,0.00019699,2]
[363373600,1748701852162,-572.2963003,0.00019699,2]
[363373601,1748701852171,-153.0,0.00019699,2]
[363373602,1748701852180,-470.0539541,0.00019699,2]
[363373603,1748701852189,-153.0,0.00019699,2]
[363373604,1748701852199,-153.0,0.00019699,2]
[363373605,1748701852208,-153.0,0.00019699,2]
[363373606,1748701852218,-153.0,0.00019699,2]
[363373607,1748701852227,-153.0,0.00019699,2]
[363373608,1748701852237,-153.0,0.00019699,2]
[363373609,1748701852246,-153.0,0.00019699,2]
[363373610,1748701852256,-153.0,0.00019699,2]
[363373611,1748701852265,-153.0,0.00019699,2]
[363373612,1748701852274,-153.0,0.00019699,2]
[363373613,1748701852283,-155.1025348,0.00019699,2]
[363373614,1748701852293,-14291.53427782,0.000197,2]
[363373615,1748701852302,-151.0,0.00019725,2]
[363373616,1748701852311,-198.0,0.00019725,2]
[363373617,1748701852434,-151.0,0.00019725,2]
[363373618,1748701852444,-430.0,0.00019726,2]
[363373619,1748701852453,-157.83,0.00019726,2]
[363373620,1748701852463,-430.0,0.00019726,2]
[363373621,1748701852472,-697.77,0.00019726,2]
[363373622,1748701852481,-430.0,0.00019726,2]
[363373623,1748701852490,-430.0,0.00019726,2]
[363373624,1748701852499,-1363.21,0.00019726,2]
[363373625,1748701852509,-430.0,0.00019726,2]
[363373626,1748701852520,-658.26,0.00019726,2]
[363373627,1748701852532,-430.0,0.00019726,2]
[363373628,1748701852541,-430.0,0.00019726,2]
[363373629,1748701852551,-823.82,0.00019726,2]
[363373630,1748701852561,-430.0,0.00019726,2]
[363373631,1748701852570,-430.0,0.00019726,2]
[363373632,1748701852579,-1045.12,0.00019726,2]
[363373633,1748701852590,-1042.02,0.00019726,2]
[363373634,1748701852601,-1392.42,0.00019726,2]
[363373635,1748701852610,-1371.02,0.00019726,2]
[363373636,1748701852620,-430.0,0.00019726,2]
[363373637,1748701852631,-430.0,0.00019726,2]
[363373638,1748701852642,-2919.2,0.00019726,2]
[363373639,1748701852652,-519.87,0.00019726,2]
[363373640,1748701852662,-430.0,0.00019726,2]
[363373641,1748701852671,-675.79,0.00019726,2]
[363373642,1748701852682,-482.88,0.00019726,2]
[363373643,1748701852692,-430.0,0.00019726,2]
[363373644,1748701852702,-3090.3,0.00019726,2]
[363373645,1748701852713,-1138.61,0.00019726,2]
[363373646,1748701852722,-430.0,0.00019726,2]
[363373647,1748701852731,-969.3,0.00019726,2]
[363373648,1748701852740,-1948.36,0.00019726,2]
[363373649,1748701852749,-2503.72,0.00019726,2]
[363373650,1748701852759,-347.61781469,0.00019726,2]
[363373651,1748701852768,-430.0,0.00019726,2]
[363373652,1748701852777,-499.05,0.00019726,2]
[363373653,1748701852787,-809.48,0.00019726,2]
[363373654,1748701852796,-881.69,0.00019726,2]
[363373655,1748701852806,-444.14,0.00019726,2]
[363373656,1748701852817,-2229.64,0.00019726,2]
[363373657,1748701852828,-1040.19,0.00019726,2]
[363373658,1748701852838,-430.0,0.00019726,2]
[363373659,1748701852849,-430.0,0.00019726,2]
[363373660,1748701852859,-443.18,0.00019726,2]
[363373661,1748701852869,-1115.27,0.00019726,2]
[363373662,1748701852880,-486.49,0.00019726,2]
[363373663,1748701852890,-572.2963003,0.00019726,2]
[363373664,1748701852900,-153.0,0.00019726,2]
[363373665,1748701852911,-572.2963003,0.00019726,2]
[363373666,1748701852920,-153.0,0.00019726,2]
[363373667,1748701852930,-205.80618261,0.00019752,2]
[363373668,1748701852939,-151.0,0.00019752,2]
[363373669,1748701852949,-151.0,0.0001978,2]
[363373670,1748701852959,-162.0,0.00019807,2]
[363373671,1748701852979,-406.48,0.00019828,2]
[363373672,1748701852989,-1196.12901374,0.00019831,2]
[363373673,1748701852999,-198.0,0.00019835,2]
[363373674,1748701853010,-500.0,0.00019835,2]
[363373675,1748701853020,-500.0,0.00019862,2]
[363373676,1748701853030,-500.0,0.0001989,2]
[363373677,1748701853040,-625.26263881,0.00019903,2]
[363373678,1748701853051,-252.45466841,0.00019917,2]
[363373679,1748701853061,-600.0,0.00019964,2]
[363373680,1748701853071,-500.0,0.00019973,2]
[363373681,1748701853081,-609.34697371,0.00019973,2]
[363373682,1748701853091,-500.0,0.00019973,2]
[363373683,1748701853101,-500.0,0.00019973,2]
[363373684,1748701853111,-500.0,0.00019973,2]
[363373685,1748701853120,-34492.41383874,0.0002,3]
[363373686,1748701853129,-85514.63151188,0.0002,2]
[363373687,1748701853139,-842.5625,0.0002,3]
[363373688,1748701853148,-430.0,0.0002,2]
[363373689,1748701853157,-430.0,0.0002,2]
[363373690,1748701853166,-697.77,0.0002,2]
[363373691,1748701853175,-430.0,0.0002,2]
[363373692,1748701853185,-430.0,0.0002,2]
[363373693,1748701853194,-1363.21,0.0002,2]
[363373694,1748701853203,-430.0,0.0002,2]
[363373695,1748701853217,-658.26,0.0002,2]
[363373696,1748701853227,-430.0,0.0002,2]
[363373697,1748701853236,-430.0,0.0002,2]
[363373698,1748701853245,-823.82,0.0002,2]
[363373699,1748701853254,-430.0,0.0002,2]
[363373700,1748701853263,-430.0,0.0002,2]
[363373701,1748701853273,-1045.12,0.0002,2]
[363373702,1748701853283,-1042.02,0.0002,2]
[363373703,1748701853292,-1392.42,0.0002,2]
[363373704,1748701853301,-1371.02,0.0002,2]
[363373705,1748701853311,-430.0,0.0002,2]
[363373706,1748701853320,-430.0,0.0002,2]
[363373707,1748701853329,-2919.2,0.0002,2]
[363373708,1748701853339,-519.87,0.0002,2]
[363373709,1748701853349,-430.0,0.0002,2]
[363373710,1748701853359,-675.79,0.0002,2]
[363373711,1748701853369,-482.88,0.0002,2]
[363373712,1748701853378,-3090.3,0.0002,2]
[363373713,1748701853389,-502.08399402,0.0002,2]
[363373714,1748701853399,-1138.61,0.0002,2]
[363373715,1748701853408,-430.0,0.0002,2]
[363373716,1748701853418,-181.06206331,0.0002,2]
[363373717,1748701853427,-969.3,0.0002,2]
[363373718,1748701853437,-6298.82403136,0.0002,2]
[363373719,1748701853446,-12736.42206324,0.0002,2]
[363373720,1748701853455,-1948.36,0.0002,2]
[363373721,1748701853465,-1181.56449734,0.0002,2]
[363373722,1748701853475,-359.79678851,0.0002,2]
[363373723,1748701853484,-30000.0,0.0002,2]
[363373724,1748701853494,-2681.07944678,0.0002,2]
[363373725,1748701853503,-35483.5639356,0.0002,2]
[363373726,1748701853512,-39001.81422703,0.0002,2]
[363373727,1748701853522,-2503.72,0.0002,2]
[363373728,1748701853536,-430.0,0.0002,2]
[363373729,1748701853545,-499.05,0.0002,2]
[363373730,1748701853555,-809.48,0.0002,2]
[363373731,1748701853564,-881.69,0.0002,2]
[363373732,1748701853574,-444.14,0.0002,2]
[363373733,1748701853584,-2229.64,0.0002,2]
[363373734,1748701853593,-1040.19,0.0002,2]
[363373735,1748701853603,-430.0,0.0002,2]
[363373736,1748701853613,-430.0,0.0002,2]
[363373737,1748701853623,-443.18,0.0002,2]
[363373738,1748701853632,-1115.27,0.0002,2]
[363373739,1748701853641,-4000.0,0.0002,4]
[363373740,1748701853651,-486.49,0.0002,2]
[363373741,1748701853660,-1000.0,0.00020021,2]
[363373742,1748701853670,-1000.0,0.00020021,2]